bitfinex/quotes_BTCUSD_20250508
["timestamp","ask_amount","ask_price","bid_price","bid_amount"]
[1746722708472,0.15671646,101240.0,101230.0,0.76978209]
[1746722708819,0.35426683,101240.0,101230.0,0.74014828]
[1746722708964,0.34439,101240.0,101230.0,0.74360457]
[1746722709363,0.34439,101240.0,101230.0,0.75348247]
[1746722709567,0.34439,101240.0,101230.0,0.74360457]
[1746722710002,0.35132981,101240.0,101230.0,0.74360457]
[1746722710206,0.63171921,101240.0,101230.0,0.69756989]
[1746722710407,0.64671921,101240.0,101230.0,0.5]
[1746722710633,0.63484189,101240.0,101230.0,0.5]
[1746722710837,0.99054189,101240.0,101230.0,0.5]
[1746722711037,1.00054189,101240.0,101230.0,0.5]
[1746722711615,0.04417778,101220.0,101210.0,0.27052889]
[1746722711838,0.1448447,101220.0,101210.0,0.27052889]
[1746722712036,0.15472407,101220.0,101210.0,0.27052889]
[1746722712243,0.16397719,101220.0,101210.0,0.27052889]
[1746722712606,0.14421855,101220.0,101210.0,0.27052889]
[1746722712810,0.15409782,101220.0,101210.0,0.77052889]
[1746722713292,0.14421855,101220.0,101210.0,0.77052889]
[1746722713417,0.02669572,101230.0,101220.0,0.22722663]
[1746722713628,0.10760673,101230.0,101220.0,0.54084003]
[1746722713856,0.10066692,101230.0,101220.0,0.54084003]
[1746722714101,0.10066692,101230.0,101220.0,0.25982663]
[1746722714465,0.13030073,101230.0,101220.0,0.25982663]
[1746722714849,0.12042263,101230.0,101220.0,0.75982663]
[1746722715188,0.13030073,101230.0,101220.0,0.75973696]
[1746722715594,0.14017902,101230.0,101220.0,0.75973696]
[1746722715792,0.13030073,101230.0,101220.0,0.75973696]
[1746722715961,0.14017893,101230.0,101220.0,0.75973696]
[1746722716575,0.32787101,101230.0,101220.0,0.74994785]
[1746722716784,0.3377493,101230.0,101220.0,0.76182673]
[1746722716983,0.61354755,101230.0,101220.0,0.5183]
[1746722717188,0.64514755,101230.0,101220.0,0.502]
[1746722717611,0.65439997,101230.0,101220.0,0.502]
[1746722717812,1.35413937,101230.0,101220.0,0.502]
[1746722718018,1.35413937,101230.0,101220.0,0.503]
[1746722718230,1.35413937,101230.0,101220.0,0.502]
[1746722718428,1.35413937,101230.0,101220.0,0.36472867]
[1746722718633,1.35413937,101230.0,101220.0,0.36272867]
[1746722719244,1.35613937,101230.0,101220.0,0.36272867]
[1746722719425,1.00333937,101230.0,101220.0,0.36272867]
[1746722719627,1.34635277,101230.0,101220.0,0.36272867]
[1746722719832,1.35484883,101230.0,101220.0,0.36272867]
[1746722720384,1.07383543,101230.0,101220.0,0.36272867]
[1746722720578,0.60310952,101220.0,101210.0,0.00120023]
[1746722720707,0.98478984,101220.0,101210.0,0.00120023]
[1746722720906,0.99172924,101220.0,101210.0,0.00120023]
[1746722721562,1.10164858,101220.0,101210.0,0.00120023]
[1746722722330,1.00398166,101220.0,101210.0,0.00120023]
[1746722723371,1.00798166,101220.0,101210.0,0.00120023]
[1746722727282,0.69574743,101220.0,101210.0,0.19880916]
[1746722727727,0.12385874,101220.0,101210.0,0.21440916]
[1746722727926,0.15349538,101220.0,101210.0,0.25006955]
[1746722728217,0.15412233,101220.0,101210.0,0.75994941]
[1746722728393,0.16466318,101220.0,101210.0,0.75006955]
[1746722728718,0.15672378,101220.0,101210.0,0.7599495]
[1746722729018,0.35531318,101220.0,101210.0,0.75006955]
[1746722729991,0.34543459,101220.0,101210.0,0.75006955]
[1746722730203,0.34543459,101220.0,101210.0,0.75006965]
[1746722730423,0.34543459,101220.0,101210.0,0.7599497]
[1746722730770,0.14784519,101220.0,101210.0,0.7599497]
[1746722730893,0.14784519,101220.0,101210.0,0.76982946]
[1746722731096,0.35531406,101220.0,101210.0,0.76982965]
[1746722731291,0.35531406,101220.0,101210.0,1.06072281]
[1746722731292,0.10366692,101220.0,101210.0,1.06072281]
[1746722731536,0.01287868,101220.0,101210.0,0.77970941]
[1746722731945,0.01769534,101220.0,101210.0,0.76817848]
[1746722732121,0.00681675,101220.0,101210.0,0.76817848]
[1746722732315,0.01669543,101220.0,101210.0,0.76817848]
[1746722733128,0.01669543,101220.0,101210.0,0.77017848]
[1746722733604,0.02657431,101220.0,101210.0,0.77017848]
[1746722734768,0.00681675,101220.0,101210.0,0.77017848]
[1746722734966,0.00681675,101220.0,101210.0,1.05119188]
[1746722735520,0.00681675,101220.0,101210.0,1.45119188]
[1746722735741,0.00681675,101220.0,101210.0,1.79119188]
[1746722736191,0.92985847,101240.0,101230.0,0.25800448]
[1746722736434,1.0404029,101240.0,101230.0,0.25800448]
[1746722736639,1.0404029,101240.0,101230.0,0.26788229]
[1746722737381,1.03052617,101240.0,101230.0,0.24812658]
[1746722737496,1.03052617,101240.0,101230.0,0.26788268]
[1746722737872,1.03252617,101240.0,101230.0,0.74812658]
[1746722738405,1.03252617,101240.0,101230.0,0.75800458]
[1746722739463,1.03352617,101240.0,101230.0,0.75800458]
[1746722739701,0.82609829,101240.0,101230.0,0.76788248]
[1746722739826,1.03352617,101240.0,101230.0,0.74812658]
[1746722740185,1.03352617,101240.0,101230.0,0.75800468]
[1746722740400,1.02364934,101240.0,101230.0,0.75800468]
[1746722740601,1.02164934,101240.0,101230.0,0.75800468]
[1746722740951,1.01177222,101240.0,101230.0,0.74812658]
[1746722741358,1.01177222,101240.0,101230.0,0.75800468]
[1746722741565,1.01077222,101240.0,101230.0,0.75800468]
[1746722741965,1.01752209,101240.0,101230.0,0.75800468]
[1746722742316,1.01752209,101240.0,101230.0,0.76788268]
[1746722742515,0.81997133,101240.0,101230.0,0.77776049]
[1746722742712,1.02739921,101240.0,101230.0,0.76788268]
[1746722743633,1.02739921,101240.0,101230.0,0.77776058]
[1746722743805,0.82984806,101240.0,101230.0,0.7777599]
[1746722744036,0.00674987,101240.0,101230.0,1.0587733]
[1746722744240,0.03638066,101240.0,101230.0,1.0587733]
[1746722744419,0.03638056,101240.0,101230.0,1.0587733]
[1746722744615,0.02650344,101240.0,101230.0,1.0587733]
[1746722744813,0.03638047,101240.0,101230.0,1.0587733]
[1746722745653,0.04625769,101240.0,101230.0,1.0587733]
[1746722745985,0.05613501,101240.0,101230.0,1.0587733]
[1746722746121,0.05613501,101240.0,101230.0,0.7777599]
[1746722746326,0.04625769,101240.0,101230.0,0.7777599]
[1746722746523,0.03638047,101240.0,101230.0,0.7777599]
[1746722747373,0.04625769,101240.0,101230.0,0.7777599]
[1746722747631,0.34913958,101240.0,101230.0,0.5308]
[1746722747803,0.70305379,101240.0,101230.0,0.5]
[1746722748003,1.34557595,101240.0,101230.0,0.5]
[1746722748173,1.3547913,101240.0,101230.0,0.5]
[1746722750944,1.36370469,101240.0,101230.0,0.5]
[1746722751273,1.46537161,101240.0,101230.0,0.5]
[1746722751447,1.70470469,101240.0,101230.0,0.5]
[1746722752110,0.04417808,101220.0,101210.0,0.25272673]
[1746722752310,0.144845,101220.0,101210.0,0.25252673]
[1746722752517,0.1508919,101220.0,101210.0,0.25252673]
[1746722752711,0.1508919,101220.0,101210.0,0.75252673]
[1746722753411,0.3484813,101220.0,101210.0,0.75252673]
[1746722754257,0.3484813,101220.0,101210.0,0.75652673]
[1746722754458,0.1508919,101220.0,101210.0,0.75652673]
[1746722756359,0.3484813,101220.0,101210.0,0.72688716]
[1746722756567,0.3484813,101220.0,101210.0,0.73124697]
[1746722756774,0.1508919,101220.0,101210.0,0.73124697]
[1746722757362,0.1508919,101220.0,101210.0,0.72924697]
[1746722757567,0.1508919,101220.0,101210.0,0.72724697]
[1746722758221,0.1508919,101220.0,101210.0,0.70746077]
[1746722758556,0.3484813,101220.0,101210.0,0.70746077]
[1746722758916,0.1508919,101220.0,101210.0,0.71734102]
[1746722759134,0.35836077,101220.0,101210.0,0.71734121]
[1746722759351,0.3484813,101220.0,101210.0,0.72722097]
[1746722760136,0.35836077,101220.0,101210.0,0.71734121]
[1746722760579,0.35836077,101220.0,101210.0,0.72722107]
[1746722761249,0.35836077,101220.0,101210.0,0.74312107]
[1746722762293,0.35836077,101220.0,101210.0,0.50599405]
[1746722762501,0.99121631,101220.0,101210.0,0.49009405]
[1746722762712,1.97289633,101220.0,101210.0,0.49009405]
[1746722762927,1.28702747,101220.0,101210.0,0.49009405]
[1746722763129,1.34702747,101220.0,101210.0,0.49009405]
[1746722763697,1.35102747,101220.0,101210.0,0.49009405]
[1746722763908,0.24183484,101190.0,101180.0,0.22731639]
[1746722764069,0.34842595,101190.0,101180.0,0.22731639]
[1746722764520,0.34842595,101190.0,101180.0,0.23719927]
[1746722764723,0.34842595,101190.0,101180.0,0.73719927]
[1746722764923,0.34842595,101190.0,101180.0,0.72731639]
[1746722765265,0.33854424,101190.0,101180.0,0.71002111]
[1746722765459,0.33854424,101190.0,101180.0,0.71202111]
[1746722766017,0.33854424,101190.0,101180.0,0.72190409]
[1746722766637,0.33854424,101190.0,101180.0,0.71202111]
[1746722766850,0.33854424,101190.0,101180.0,0.50447078]
[1746722766851,0.31877994,101190.0,101180.0,0.50447078]
[1746722767631,0.34897994,101190.0,101180.0,0.50047078]
[1746722769770,0.62999334,101190.0,101180.0,0.50047078]
[1746722770536,0.62999334,101190.0,101180.0,0.00047078]
[1746722770739,0.31877994,101190.0,101180.0,0.1981383]
[1746722770957,0.10659111,101190.0,101180.0,0.51868401]
[1746722771127,0.11647282,101190.0,101180.0,0.55078401]
[1746722771370,0.14089558,101190.0,101180.0,0.55078401]
[1746722771543,0.35830805,101190.0,101180.0,0.54090132]
[1746722771774,0.35830805,101190.0,101180.0,0.75988802]
[1746722772122,0.35830805,101190.0,101180.0,0.53257078]
[1746722772123,0.33854443,101190.0,101180.0,0.53257078]
[1746722772331,0.14089587,101190.0,101180.0,0.75000475]
[1746722772539,0.11647263,101190.0,101180.0,1.05078382]
[1746722772734,0.11647272,101190.0,101180.0,1.05078382]
[1746722773065,0.13623683,101190.0,101180.0,1.05078382]
[1746722773262,0.12635444,101190.0,101180.0,1.05078382]
[1746722773495,0.13623635,101190.0,101180.0,1.05078382]
[1746722773694,0.14611845,101190.0,101180.0,1.05078382]
[1746722773848,0.13623635,101190.0,101180.0,1.05278382]
[1746722774239,0.11647263,101190.0,101180.0,1.05478382]
[1746722774441,0.0158059,101190.0,101180.0,1.05478382]
[1746722774590,0.00592419,101190.0,101180.0,1.05478382]
[1746722774792,0.0158059,101190.0,101180.0,1.05478382]
[1746722775181,0.00592419,101190.0,101180.0,1.05478382]
[1746722776217,0.00592419,101190.0,101180.0,1.67579722]
[1746722776357,0.00592419,101190.0,101180.0,1.39478382]
[1746722776753,0.00592419,101190.0,101180.0,1.11377042]
[1746722777006,0.00592419,101190.0,101180.0,1.39478382]
[1746722777784,0.00592419,101190.0,101180.0,1.79478382]
[1746722781072,0.02964034,101210.0,101200.0,0.22727153]
[1746722781269,0.02964034,101210.0,101200.0,0.24227153]
[1746722781497,0.02964034,101210.0,101200.0,0.25857153]
[1746722781744,0.22724927,101210.0,101200.0,0.2486908]
[1746722782111,0.02964025,101210.0,101200.0,0.26845236]
[1746722782313,0.03164025,101210.0,101200.0,0.26845236]
[1746722782728,0.02176,101210.0,101200.0,0.26845236]
[1746722782889,0.01187956,101210.0,101200.0,0.54946576]
[1746722783083,0.01187956,101210.0,101200.0,1.04946576]
[1746722783290,0.04151942,101210.0,101200.0,1.04946576]
[1746722783693,0.04251942,101210.0,101200.0,1.04946576]
[1746722784432,0.04151942,101210.0,101200.0,1.04946576]
[1746722784830,0.22724879,101210.0,101200.0,0.5]
[1746722784983,0.32269695,101210.0,101200.0,0.69762845]
[1746722785183,0.32269695,101210.0,101200.0,0.71739119]
[1746722785629,0.32269695,101210.0,101200.0,0.72727241]
[1746722786029,0.32269695,101210.0,101200.0,0.73715354]
[1746722786763,0.32269695,101210.0,101200.0,0.74703447]
[1746722786967,0.32846177,101210.0,101200.0,0.74703447]
[1746722788081,0.32846177,101210.0,101200.0,0.73715305]
[1746722788082,0.1407322,101210.0,101200.0,0.73715305]
[1746722788230,0.15061245,101210.0,101200.0,0.74703388]
[1746722788540,0.15061245,101210.0,101200.0,0.74703329]
[1746722788742,0.1407322,101210.0,101200.0,0.74703329]
[1746722788942,0.1407322,101210.0,101200.0,0.73715256]
[1746722789178,0.1407322,101210.0,101200.0,0.74703329]
[1746722789443,0.15061235,101210.0,101200.0,0.74703329]
[1746722789844,0.15061225,101210.0,101200.0,0.74703329]
[1746722790580,0.1604925,101210.0,101200.0,0.74703329]
[1746722790782,0.1604925,101210.0,101200.0,0.73715256]
[1746722791026,0.34822177,101210.0,101200.0,0.70750977]
[1746722791336,0.34822177,101210.0,101200.0,0.73715325]
[1746722791677,0.15061284,101210.0,101200.0,0.74703398]
[1746722791893,0.13085225,101210.0,101200.0,0.76323398]
[1746722792093,0.12097259,101210.0,101200.0,1.05954738]
[1746722792366,0.00576482,101210.0,101200.0,1.05954738]
[1746722793198,0.71190498,101230.0,101220.0,0.24362663]
[1746722793402,0.81322283,101230.0,101220.0,0.52464003]
[1746722793609,1.03521244,101230.0,101220.0,0.1975894]
[1746722793810,1.02067159,101230.0,101220.0,0.21734814]
[1746722794233,1.03521244,101230.0,101220.0,0.21734814]
[1746722794402,1.03621244,101230.0,101220.0,0.22722731]
[1746722794606,1.03621244,101230.0,101220.0,0.72722731]
[1746722795004,1.03821244,101230.0,101220.0,0.72722731]
[1746722795448,1.04743897,101230.0,101220.0,0.73710629]
[1746722795757,1.04743897,101230.0,101220.0,0.72722731]
[1746722797048,1.03756087,101230.0,101220.0,0.72722731]
[1746722797814,1.03756087,101230.0,101220.0,0.71734814]
[1746722798290,1.02768258,101230.0,101220.0,0.5]
[1746722798495,1.04950419,101230.0,101220.0,0.5]
[1746722798744,1.04950419,101230.0,101220.0,0.6975894]
[1746722799152,1.04950419,101230.0,101220.0,0.5]
[1746722799590,1.78964799,101230.0,101220.0,0.5]
[1746722799816,1.79657229,101230.0,101220.0,0.5]
[1746722800263,0.23190998,101210.0,101200.0,0.1976265]
[1746722800487,0.3325769,101210.0,101200.0,0.21738904]
[1746722800764,0.34180343,101210.0,101200.0,0.21738904]
[1746722801201,0.33192348,101210.0,101200.0,0.20750987]
[1746722801421,0.33192348,101210.0,101200.0,0.21739109]
[1746722801643,0.33192348,101210.0,101200.0,0.002]
[1746722801862,0.33192348,101210.0,101200.0,0.70950987]
[1746722802073,0.33741693,101210.0,101200.0,0.70950987]
[1746722802291,0.33741693,101210.0,101200.0,0.71939119]
[1746722802531,0.33741693,101210.0,101200.0,0.72927241]
[1746722803204,0.33741693,101210.0,101200.0,0.74115354]
[1746722803588,0.3559085,101210.0,101200.0,0.74115354]
[1746722803798,0.3559085,101210.0,101200.0,0.73127241]
[1746722805050,0.3559085,101210.0,101200.0,0.74115354]
[1746722805790,0.3559085,101210.0,101200.0,0.504]
[1746722805962,0.34602825,101210.0,101200.0,0.504]
[1746722806220,0.37642825,101210.0,101200.0,0.70162845]
[1746722806425,0.37642825,101210.0,101200.0,0.71150987]
[1746722806604,0.36132825,101210.0,101200.0,0.72139109]
[1746722806796,0.36132825,101210.0,101200.0,0.502]
[1746722807000,0.37732825,101210.0,101200.0,0.69762845]
[1746722807633,0.37732825,101210.0,101200.0,0.5]
[1746722808413,0.37732825,101210.0,101200.0,0.69762845]
[1746722808989,0.37732825,101210.0,101200.0,0.70750987]
[1746722809873,0.37732825,101210.0,101200.0,0.71739119]
[1746722810137,0.37205925,101210.0,101200.0,0.71739119]
[1746722810491,0.37205925,101210.0,101200.0,0.72727241]
[1746722811334,0.37205925,101210.0,101200.0,0.71739119]
[1746722812152,0.37205925,101210.0,101200.0,0.70750967]
[1746722812327,0.37205925,101210.0,101200.0,0.70750987]
[1746722812530,0.37205925,101210.0,101200.0,0.30181248]
[1746722812743,0.37205925,101210.0,101200.0,0.50932235]
[1746722812963,0.37205925,101210.0,101200.0,0.51920367]
[1746722813146,0.37205925,101210.0,101200.0,0.50932235]
[1746722813743,0.37205925,101210.0,101200.0,0.30181248]
[1746722815360,0.35605925,101210.0,101200.0,0.30181248]
[1746722817587,0.34075925,101210.0,101200.0,0.30181248]
[1746722818849,0.34075925,101210.0,101200.0,0.50932235]
[1746722820064,0.37939457,101210.0,101200.0,0.30181248]
[1746722821063,0.37939457,101210.0,101200.0,0.49944093]
[1746722821262,0.36349457,101210.0,101200.0,0.49944093]
[1746722821578,0.34769457,101210.0,101200.0,0.30181248]
[1746722824855,0.66010797,101210.0,101200.0,0.30181248]
[1746722825858,1.07189457,101210.0,101200.0,0.30181248]
[1746722826200,1.42624379,101210.0,101200.0,0.30181248]
[1746722826660,1.35290797,101210.0,101200.0,0.30181248]
[1746722828083,1.35290797,101210.0,101200.0,0.1240838]
[1746722830888,1.69290797,101210.0,101200.0,0.1240838]
[1746722831122,1.01010797,101210.0,101200.0,0.1240838]
[1746722832231,0.59375052,101200.0,101190.0,0.00047078]
[1746722832436,1.00314894,101200.0,101190.0,0.00047078]
[1746722832631,1.00844762,101200.0,101190.0,0.00047078]
[1746722832847,0.69573422,101200.0,101190.0,0.00047078]
[1746722833031,0.70561535,101200.0,101190.0,0.23448325]
[1746722833235,0.16038039,101200.0,101190.0,0.26944696]
[1746722833436,0.1603802,101200.0,101190.0,0.55046036]
[1746722833641,0.17026113,101200.0,101190.0,0.55046036]
[1746722833839,0.16332581,101200.0,101190.0,0.76944696]
[1746722834044,0.17420703,101200.0,101190.0,0.76944696]
[1746722834244,0.17420664,101200.0,101190.0,0.76944696]
[1746722834485,0.18408786,101200.0,101190.0,0.76944696]
[1746722834652,0.17420664,101200.0,101190.0,0.76944696]
[1746722834857,0.18708786,101200.0,101190.0,0.76944696]
[1746722835221,0.17320664,101200.0,101190.0,0.76944696]
[1746722835418,0.14356424,101200.0,101190.0,1.05046036]
[1746722835620,0.163326,101200.0,101190.0,1.05046036]
[1746722835845,0.14483443,101200.0,101190.0,1.05046036]
[1746722836054,0.15471556,101200.0,101190.0,1.05046036]
[1746722836267,0.15471556,101200.0,101190.0,0.76944696]
[1746722836468,0.16459678,101200.0,101190.0,0.76944696]
[1746722837627,0.36222601,101200.0,101190.0,0.76944706]
[1746722837759,0.38071951,101200.0,101190.0,0.76944706]
[1746722838094,1.06363868,101200.0,101190.0,0.75956525]
[1746722838522,0.86601023,101200.0,101190.0,0.77932877]
[1746722838758,1.06363868,101200.0,101190.0,0.76944706]
[1746722839482,1.04387662,101200.0,101190.0,0.74968325]
[1746722839886,1.04387662,101200.0,101190.0,0.75956525]
[1746722840515,1.02411408,101200.0,101190.0,0.53227078]
[1746722840726,1.42033525,101200.0,101190.0,0.50047078]
[1746722840949,1.43693525,101200.0,101190.0,0.50047078]
[1746722841294,1.46047188,101200.0,101190.0,0.50047078]
[1746722841668,1.35980496,101200.0,101190.0,0.00047078]
[1746722842231,1.36180496,101200.0,101190.0,0.00047078]
[1746722842484,1.70180496,101200.0,101190.0,0.00047078]
[1746722843296,1.71180496,101200.0,101190.0,0.00047078]
[1746722843698,2.06880496,101200.0,101190.0,0.00047078]
[1746722843905,1.47667188,101200.0,101190.0,0.00047078]
[1746722844323,1.47467188,101200.0,101190.0,0.00047078]
[1746722844499,1.47767188,101200.0,101190.0,0.00047078]
[1746722844708,1.48067188,101200.0,101190.0,0.00047078]
[1746722845077,1.48066364,101200.0,101190.0,0.00047078]
[1746722846318,1.76167704,101200.0,101190.0,0.00047078]
[1746722846521,1.53066364,101200.0,101190.0,0.00047078]
[1746722848439,1.53067457,101200.0,101190.0,0.00047078]
[1746722849155,1.53583443,101200.0,101190.0,0.00047078]
[1746722850034,1.81684783,101200.0,101190.0,0.00047078]
[1746722850376,1.53583443,101200.0,101190.0,0.00047078]
[1746722850579,1.81684783,101200.0,101190.0,0.00047078]
[1746722851210,1.53583443,101200.0,101190.0,0.00047078]
[1746722851416,1.80684783,101200.0,101190.0,0.00047078]
[1746722851568,0.55468783,101180.0,101170.0,0.05]
[1746722851774,0.64986672,101180.0,101170.0,0.05009294]
[1746722851966,0.68515806,101180.0,101170.0,0.05009294]
[1746722852982,0.69439552,101180.0,101170.0,0.05009294]
[1746722853200,0.79506244,101180.0,101170.0,0.05009294]
[1746722853702,0.69839552,101180.0,101170.0,0.05009294]
[1746722854179,0.70622328,101180.0,101170.0,0.05009294]
[1746722859558,1.06234328,101180.0,101170.0,0.05009294]
[1746722865356,1.03064328,101180.0,101170.0,0.05009294]
[1746722867873,1.02064328,101180.0,101170.0,0.05009294]
[1746722868118,1.03064328,101180.0,101170.0,0.05009294]
[1746722868290,1.0207604,101180.0,101170.0,0.05009294]
[1746722868519,1.03064328,101180.0,101170.0,0.05009294]
[1746722871426,1.02064328,101180.0,101170.0,0.05009294]
[1746722871830,1.03064328,101180.0,101170.0,0.05009294]
[1746722872832,0.36896903,101180.0,101170.0,0.08129294]
[1746722873485,0.38350988,101180.0,101170.0,0.08129294]
[1746722874594,0.38150988,101180.0,101170.0,0.08129294]
[1746722874945,0.38150988,101180.0,101170.0,0.27898]
[1746722875147,0.37368212,101180.0,101170.0,0.28886435]
[1746722875646,0.37368212,101180.0,101170.0,0.08129294]
[1746722876022,0.37168212,101180.0,101170.0,0.58129294]
[1746722877725,0.37168212,101180.0,101170.0,0.77898]
[1746722877932,0.71168212,101180.0,101170.0,0.58129294]
[1746722880505,0.69319686,101180.0,101170.0,0.58129294]
[1746722880736,0.15552934,101180.0,101170.0,0.78886415]
[1746722880939,0.15552934,101180.0,101170.0,1.08964517]
[1746722880940,0.16541193,101180.0,101170.0,1.08964517]
[1746722881104,0.37296272,101180.0,101170.0,1.08964517]
[1746722881303,0.1752952,101180.0,101170.0,1.08964537]
[1746722881678,0.15848903,101180.0,101170.0,1.09952903]
[1746722881886,0.14925147,101180.0,101170.0,1.09952903]
[1746722882098,0.10506207,101180.0,101170.0,1.09952903]
[1746722882421,0.12482755,101180.0,101170.0,1.10152903]
[1746722882578,0.13471053,101180.0,101170.0,1.10152903]
[1746722882978,0.13471053,101180.0,101170.0,1.10252903]
[1746722883187,0.11494466,101180.0,101170.0,1.10252903]
[1746722883424,0.12482745,101180.0,101170.0,1.10252903]
[1746722883627,0.1445939,101180.0,101170.0,1.10252903]
[1746722883797,0.1445939,101180.0,101170.0,0.82925666]
[1746722883798,0.13471053,101180.0,101170.0,0.82925666]
[1746722883981,0.12482745,101180.0,101170.0,1.10252903]
[1746722884185,0.13471043,101180.0,101170.0,1.10252903]
[1746722884403,0.12482745,101180.0,101170.0,1.10252903]
[1746722884578,0.11494466,101180.0,101170.0,1.10252903]
[1746722884779,0.12482754,101180.0,101170.0,1.10252903]
[1746722885249,0.13471072,101180.0,101170.0,1.10252903]
[1746722886419,0.34226151,101180.0,101170.0,1.10252903]
[1746722886632,0.14459399,101180.0,101170.0,1.10252903]
[1746722887368,0.12482754,101180.0,101170.0,1.10252903]
[1746722887577,0.13471062,101180.0,101170.0,1.10252903]
[1746722888197,0.1445938,101180.0,101170.0,1.10252903]
[1746722889087,0.13471062,101180.0,101170.0,1.10252903]
[1746722889842,0.13471052,101180.0,101170.0,1.10252903]
[1746722890045,0.1445937,101180.0,101170.0,1.10252903]
[1746722891141,0.13471052,101180.0,101170.0,1.10252903]
[1746722892121,0.12482745,101180.0,101170.0,1.10252903]
[1746722892326,0.00439515,101180.0,101170.0,1.10252903]
[1746722893964,0.00439515,101180.0,101170.0,1.50252903]
[1746722894118,0.00439515,101180.0,101170.0,1.10252903]
[1746722894512,0.00439515,101180.0,101170.0,1.50252903]
[1746722896528,0.00439515,101180.0,101170.0,1.22151563]
[1746722896725,0.00439515,101180.0,101170.0,1.50252903]
[1746722898047,0.05140514,101200.0,101190.0,0.24339399]
[1746722898304,0.14609382,101200.0,101190.0,0.53950739]
[1746722898506,0.15597514,101200.0,101190.0,0.53950739]
[1746722899137,0.35360428,101200.0,101190.0,0.53950739]
[1746722899309,0.32596119,101200.0,101190.0,0.0312]
[1746722899516,0.03952773,101190.0,101180.0,0.65861646]
[1746722899676,0.03952744,101190.0,101180.0,0.94951255]
[1746722900035,0.04346005,101190.0,101180.0,0.94951255]
[1746722900557,0.04346005,101190.0,101180.0,0.54951255]
[1746722901043,0.03357785,101190.0,101180.0,0.54951255]
[1746722901252,0.01381413,101190.0,101180.0,0.54951255]
[1746722901462,0.02369574,101190.0,101180.0,0.54951255]
[1746722901701,0.02369574,101190.0,101180.0,1.04951255]
[1746722901702,0.01381413,101190.0,101180.0,1.04951255]
[1746722901882,0.02369584,101190.0,101180.0,1.04951255]
[1746722902030,0.02369574,101190.0,101180.0,1.04951255]
[1746722902239,0.04345936,101190.0,101180.0,1.04951255]
[1746722902430,0.03357745,101190.0,101180.0,1.04951255]
[1746722902835,0.04345936,101190.0,101180.0,1.04951255]
[1746722903069,0.02369574,101190.0,101180.0,1.04951255]
[1746722903530,0.01381413,101190.0,101180.0,1.04951255]
[1746722905297,0.02369574,101190.0,101180.0,1.04951255]
[1746722905710,0.01381413,101190.0,101180.0,1.04951255]
[1746722906665,0.01381413,101190.0,101180.0,0.76849915]
[1746722906892,0.01381413,101190.0,101180.0,1.04951255]
[1746722908728,0.00393261,101190.0,101180.0,1.04951255]
[1746722909169,0.00393261,101190.0,101180.0,1.67052595]
[1746722909400,0.00393261,101190.0,101180.0,1.38951255]
[1746722909858,0.002,101200.0,101190.0,0.56729399]
[1746722910091,0.002,101200.0,101190.0,1.26158771]
[1746722911460,0.002,101200.0,101190.0,1.76358771]
[1746722911695,0.002,101200.0,101190.0,2.16358771]
[1746722911890,0.00923989,101230.0,101220.0,0.82165343]
[1746722912366,0.11042753,101250.0,101220.0,0.82165343]
[1746722912367,0.10885549,101250.0,101240.0,0.20742769]
[1746722912594,0.21939875,101250.0,101240.0,0.51351831]
[1746722912820,0.24381585,101250.0,101240.0,0.50364109]
[1746722913044,0.44069746,101250.0,101240.0,0.20742779]
[1746722913261,0.44116789,101250.0,101240.0,0.20742779]
[1746722913487,0.44116789,101250.0,101240.0,0.22718233]
[1746722913711,0.24363703,101250.0,101240.0,0.22718233]
[1746722913971,0.44116789,101250.0,101240.0,0.20742779]
[1746722914148,0.24563703,101250.0,101240.0,0.20742779]
[1746722914413,0.44516789,101250.0,101240.0,0.20742779]
[1746722914636,0.44516789,101250.0,101230.0,0.23853083]
[1746722914637,0.01975376,101240.0,101230.0,0.23853083]
[1746722914860,0.00987673,101240.0,101230.0,0.25828713]
[1746722915085,0.12890471,101250.0,101240.0,0.22322769]
[1746722915311,0.15853345,101250.0,101240.0,0.72322779]
[1746722915533,0.14865613,101250.0,101240.0,1.03041831]
[1746722915755,0.14865613,101250.0,101240.0,1.04029514]
[1746722915992,0.14730548,101250.0,101240.0,1.04029524]
[1746722916209,0.15718163,101250.0,101240.0,1.03041831]
[1746722916435,0.14730548,101250.0,101240.0,1.03041831]
[1746722916659,0.13742962,101250.0,101240.0,1.05017207]
[1746722916848,0.14730557,101250.0,101240.0,1.03041831]
[1746722917042,0.15718172,101250.0,101240.0,1.05017227]
[1746722917246,0.14730557,101250.0,101240.0,0.7790357]
[1746722917448,0.14730557,101250.0,101240.0,0.76915887]
[1746722917646,0.13276472,101250.0,101240.0,1.0600491]
[1746722917845,0.13276472,101250.0,101240.0,1.03387227]
[1746722918066,0.14464087,101250.0,101240.0,0.99831831]
[1746722918211,0.35204895,101250.0,101240.0,0.97856377]
[1746722918419,0.34683809,101250.0,101240.0,0.69755037]
[1746722918633,0.36776194,101250.0,101240.0,0.70742788]
[1746722919059,0.35266194,101250.0,101240.0,0.72718252]
[1746722919258,0.35266194,101250.0,101240.0,0.72718262]
[1746722919428,0.35266194,101250.0,101240.0,0.73705984]
[1746722919627,0.35266194,101250.0,101240.0,0.72718262]
[1746722919869,0.13943108,101250.0,101240.0,0.72718262]
[1746722920081,0.33696194,101250.0,101240.0,0.72718262]
[1746722920289,0.33696194,101250.0,101240.0,0.7173053]
[1746722920488,0.33696194,101250.0,101240.0,0.72718262]
[1746722920901,0.33696194,101250.0,101240.0,0.70742788]
[1746722921334,0.33696194,101250.0,101240.0,0.7173053]
[1746722922159,0.33696194,101250.0,101240.0,0.72718262]
[1746722922786,0.33696194,101250.0,101240.0,1.01807314]
[1746722923070,0.13943059,101250.0,101240.0,1.00819602]
[1746722923365,0.13943001,101250.0,101240.0,1.04424968]
[1746722923629,0.10513735,101250.0,101240.0,1.06034968]
[1746722923854,0.00447043,101250.0,101240.0,1.06034968]
[1746722924056,0.00447043,101250.0,101240.0,1.34136308]
[1746722924390,0.00247043,101250.0,101240.0,1.06034968]
[1746722924994,0.00047043,101250.0,101240.0,1.06034968]
[1746722925503,0.00047043,101250.0,101240.0,1.46034968]
[1746722925725,0.00047043,101250.0,101240.0,1.80334968]
[1746722926329,0.00047043,101250.0,101240.0,1.80634968]
[1746722929453,0.00047043,101250.0,101240.0,1.81361654]
[1746722931067,0.00047043,101250.0,101240.0,2.19529686]
[1746722931688,0.00047043,101250.0,101240.0,1.91428346]
[1746722935214,0.00047043,101250.0,101240.0,1.81361654]
[1746722936534,0.00047043,101250.0,101240.0,1.41361654]
[1746722936896,0.00047043,101250.0,101240.0,1.81361654]
[1746722937499,0.00047043,101250.0,101240.0,1.41361654]
[1746722938034,0.00047043,101250.0,101240.0,1.81361654]
[1746722953283,0.00047043,101250.0,101240.0,1.53260314]
[1746722953714,0.06678954,101270.0,101260.0,0.22713687]
[1746722953861,0.16754941,101270.0,101260.0,0.22713687]
[1746722954049,0.17448893,101270.0,101260.0,0.22713687]
[1746722954450,0.18436313,101270.0,101260.0,0.22713687]
[1746722954840,0.19361594,101270.0,101260.0,0.22713687]
[1746722955029,0.18374106,101270.0,101260.0,0.72713687]
[1746722955233,0.17386696,101270.0,101260.0,1.00815027]